{"text_format":"3","workbook":"xlsx","n_sheets":8,"sheets":["Anleitungen","Stammgäste","Gelegentliche Bekannte","Potenzielle Kunden","Q1 Netzwerkplan","Q2 Netzwerkplan","Q3 Netzwerkplan","Q4 Netzwerkplan"],"not_rendered":{"defined_names":7},"read":"whole","date_system":"1900"}

{"sheet":"Anleitungen","index":0,"n_rows":17,"n_cols":5,"rows_kept":17,"merged":[[0,0,0,2],[1,1,1,6],[2,1,2,6],[3,1,3,6],[4,1,4,6],[5,1,5,6],[6,1,6,6],[7,1,7,6],[8,1,8,6],[9,1,9,6],[10,1,10,6],[11,1,11,6]]}
["Kontaktnachverfolgung",null,null,"Anleitungen"]
[null,"1. Entscheiden Sie, in welche Kategorie Ihr Kontakt gehört:"]
[null,"• Stammgäste – Personen, mit denen Sie in sehr regelmäßigem Kontakt bleiben möchten"]
[null,"• Gelegentliche Bekannte – Personen, die Sie mehrmals im Jahr kontaktieren möchten,"]
[null,"• Potenzielle Kunden – Personen/Unternehmen, die Sie bei entsprechender Gelegenheit kontaktieren möchten"]
[null,"2. Öffnen Sie die entsprechende Arbeitsblattregisterkarte."]
[null,"3. Geben Sie ihre Daten ein (um eine neue Zeile in einer Zelle zu erstellen, drücken Sie ALT+EINGABETASTE in Windows oder OPTIONSTASTE+ZURÜCK auf einem Mac)."]
[null,"Hier finden Sie Anweisungen Öffnen einer neuen Zeile für mobile Excel-Apps."]
[null,"4. Löschen Sie in der Spalte Nachverfolgungstermin das Beispieldatum oder die Beispielformel, geben Sie ein, wann Sie sie kontaktieren möchten \nund drücken Sie dann die EINGABETASTE."]
[null,"5. Die Spalte Nachverfolgungstermin wird rot angezeigt, wenn das Datum unmittelbar bevorsteht, gelb, wenn es in näherer Zukunft bevorsteht und \ngrün, wenn Sie noch viel Zeit haben."]
[null,"6. Wenn der Nachverfolgungstermin näher rückt, ändert sich die Farbe entsprechend."]
[null,"7. Geben Sie in der Spalte Fertig? JA ein, sobald Sie Ihren Kontakt erreicht haben. Das Datum wird dann ausgegraut. "]
[null,"8. Wenn Sie diese Person erneut kontaktieren möchten, ersetzen Sie JA durch NEIN, und geben Sie einen neuen Nachverfolgungstermin ein."]
[null,null,"Rot","Gelb","Grün"]
[null,"Stammgäste","In 1–3 Tagen","In 4–7 Tagen","In mehr als 8–14 Tagen"]
[null,"Gelegentliche Bekannte","In 1–7 Tagen","In 8–45 Tagen","In mehr als 46–90 Tagen"]
[null,"Potenzielle Kunden","In 1–14 Tagen","In 15–60 Tagen","In mehr als 60–120 Tagen"]

{"sheet":"Stammgäste","index":1,"n_rows":7,"n_cols":8,"rows_kept":7,"merged":[[0,0,0,2]]}
["Kontaktnachverfolgung",null,null,"Stammgäste"]
[]
["Name","Unternehmen","Kontaktinfos","Wo wir uns getroffen haben","Notizen","Nachverfolgungstermin","Erledigt","Notizen zum Gespräch"]
["Garth Fort","Adventure Works","Projektmanager\ngarth@adventure-works.com\n(234) 555-0134\nadventure-works.com\nlinkedin.com/in/garth-fort","Messe 2010","Nach Tochter Sandra und dem Fortschritt bei der Umgestaltung fragen. Mag keine großen Gruppen und scharfes Essen.",{"$f":"TODAY()+8","v":"2021-07-20"},"NEIN"]
["Name","Firmenname","Position\nE-Mail-Adresse\nTelefonnummer\nWebsite\nLinks zu Social-Media-Profilen\n","Ort","Fügen Sie Notizen zu allen Dingen ein, die Sie sich über diese Person merken möchten. Wo Sie sich getroffen haben, worüber Sie gesprochen haben, was Sie beim nächsten Gespräch ansprechen möchten usw.",{"$f":"TODAY()-3","v":"2021-07-09"},"JA"]
["Name","Firmenname","Position\nE-Mail-Adresse\nTelefonnummer\nWebsite\nLinks zu Social-Media-Profilen\n","Ort","Fügen Sie Notizen zu allen Dingen ein, die Sie sich über diese Person merken möchten. Wo Sie sich getroffen haben, worüber Sie gesprochen haben, was Sie beim nächsten Gespräch ansprechen möchten usw.",{"$f":"TODAY()+-3","v":"2021-07-09"},"NEIN"]
["Name","Firmenname","Position\nE-Mail-Adresse\nTelefonnummer\nWebsite\nLinks zu Social-Media-Profilen\n","Ort","Fügen Sie Notizen zu allen Dingen ein, die Sie sich über diese Person merken möchten. Wo Sie sich getroffen haben, worüber Sie gesprochen haben, was Sie beim nächsten Gespräch ansprechen möchten usw.",{"$f":"TODAY()+6","v":"2021-07-18"},"NEIN"]

{"sheet":"Gelegentliche Bekannte","index":2,"n_rows":7,"n_cols":8,"rows_kept":7,"merged":[[0,0,0,2]]}
["Kontaktnachverfolgung",null,null,"Gelegentliche Bekannte"]
[]
["Name","Unternehmen","Kontaktinfos","Wo wir uns getroffen haben","Notizen","Nachverfolgungstermin","Erledigt","Notizen zum Gespräch"]
["Garth Fort","Adventure Works","Resourcing Manager\ngarth@adventure-works.com\n(434) 555 0123\nwww.adventure-works.com\nlinkedin.com/in/garth-fort","Urlaub in Vermont 2016","Hilfreich sowohl für Kontakte bezüglich Neueinstellungen als auch für Marketingfragen",{"$f":"TODAY()+90","v":"2021-10-10"},"NEIN"]
["Name","Firmenname","Position\nE-Mail-Adresse\nTelefonnummer\nWebsite\nLinks zu Social-Media-Profilen\n","Ort","Fügen Sie Notizen zu allen Dingen ein, die Sie sich über diese Person merken möchten. Wo Sie sich getroffen haben, worüber Sie gesprochen haben, was Sie beim nächsten Gespräch ansprechen möchten usw.",{"$f":"TODAY()-3","v":"2021-07-09"},"JA"]
["Name","Firmenname","Position\nE-Mail-Adresse\nTelefonnummer\nWebsite\nLinks zu Social-Media-Profilen\n","Ort","Fügen Sie Notizen zu allen Dingen ein, die Sie sich über diese Person merken möchten. Wo Sie sich getroffen haben, worüber Sie gesprochen haben, was Sie beim nächsten Gespräch ansprechen möchten usw.",{"$f":"TODAY()+-3","v":"2021-07-09"},"NEIN"]
["Name","Firmenname","Position\nE-Mail-Adresse\nTelefonnummer\nWebsite\nLinks zu Social-Media-Profilen\n","Ort","Fügen Sie Notizen zu allen Dingen ein, die Sie sich über diese Person merken möchten. Wo Sie sich getroffen haben, worüber Sie gesprochen haben, was Sie beim nächsten Gespräch ansprechen möchten usw.",{"$f":"TODAY()+40","v":"2021-08-21"},"NEIN"]

{"sheet":"Potenzielle Kunden","index":3,"n_rows":7,"n_cols":8,"rows_kept":7,"merged":[[0,0,0,2]]}
["Kontaktnachverfolgung",null,null,"Potenzielle Kunden"]
[]
["Name","Unternehmen","Kontaktinfos","Wo wir uns getroffen haben","Notizen","Nachverfolgungstermin","Erledigt","Notizen zum Gespräch"]
["Garth Fort","Freiberufler","Designer\njemand@example.com\n425-555-0123\nexample.com\nlinkedin.com/in/garth-fort","Abschlussfeier des Sohns 2016","Berufseinsteiger – sehr qualifiziert. Kann nützlich für zukünftige Kunden sein.",{"$f":"TODAY()+89","v":"2021-10-09"},"NEIN"]
["Name","Firmenname","Position\nE-Mail-Adresse\nTelefonnummer\nWebsite\nLinks zu Social-Media-Profilen\n","Ort","Fügen Sie Notizen zu allen Dingen ein, die Sie sich über diese Person merken möchten. Wo Sie sich getroffen haben, worüber Sie gesprochen haben, was Sie beim nächsten Gespräch ansprechen möchten usw.",{"$f":"TODAY()-3","v":"2021-07-09"},"JA"]
["Name","Firmenname","Position\nE-Mail-Adresse\nTelefonnummer\nWebsite\nLinks zu Social-Media-Profilen\n","Ort","Fügen Sie Notizen zu allen Dingen ein, die Sie sich über diese Person merken möchten. Wo Sie sich getroffen haben, worüber Sie gesprochen haben, was Sie beim nächsten Gespräch ansprechen möchten usw.",{"$f":"TODAY()+-3","v":"2021-07-09"},"NEIN"]
["Name","Firmenname","Position\nE-Mail-Adresse\nTelefonnummer\nWebsite\nLinks zu Social-Media-Profilen\n","Ort","Fügen Sie Notizen zu allen Dingen ein, die Sie sich über diese Person merken möchten. Wo Sie sich getroffen haben, worüber Sie gesprochen haben, was Sie beim nächsten Gespräch ansprechen möchten usw.",{"$f":"TODAY()+30","v":"2021-08-11"},"NEIN"]

{"sheet":"Q1 Netzwerkplan","index":4,"n_rows":20,"n_cols":6,"rows_kept":20,"merged":[[0,0,0,3],[2,0,2,3],[4,0,4,3],[14,5,17,5],[18,0,18,3]]}
["Netzwerkerweiterungsplan"]
["Anleitungen"]
["Schreiben Sie, mit welchen Mitteln Sie ihr Netzwerk in diesem Quartal ausbauen möchten (d. h. mehr Telefonanrufe tätigen, mehr reisen usw.). Ändern Sie dann jedes Mal, wenn Sie einen neuen Kontakt erhalten, die Zahl der tatsächlich erzielten Kontakte, um den Überblick zu behalten und zu sehen, wie nah Sie ihrem Ziel bereits sind."]
[]
["Wie ich mein Netzwerk in diesem Quartal erweitern möchte"]
["1. Mehr Telefonanrufe tätigen"]
["2. Mehr reisen"]
[]
[]
[]
[]
[]
[]
["Vierteljährliches Kontaktziel","Stichtag","Tatsächlich im Quartal erzielte Kontakte","Ergebnisse"]
[20,{"$f":"TODAY()","v":"2021-07-12"},12,{"$f":"IF(tblGoals[[#This Row],[Vierteljährliches Kontaktziel]]>0,tblGoals[[#This Row],[Tatsächlich im Quartal erzielte Kontakte]]/tblGoals[[#This Row],[Vierteljährliches Kontaktziel]],\"\")","v":{"v":0.6,"d":"60%"}},null,"0 % - 25 %\n26 % - 50 %\n51 % - 75 %\n76 % - 100 %\n\nFarbänderungen basierend auf dem erreichten Prozentsatz"]
[{"$nulls":3},{"$f":"IF(tblGoals[[#This Row],[Vierteljährliches Kontaktziel]]>0,tblGoals[[#This Row],[Tatsächlich im Quartal erzielte Kontakte]]/tblGoals[[#This Row],[Vierteljährliches Kontaktziel]],\"\")","v":""}]
[{"$nulls":3},{"$f":"IF(tblGoals[[#This Row],[Vierteljährliches Kontaktziel]]>0,tblGoals[[#This Row],[Tatsächlich im Quartal erzielte Kontakte]]/tblGoals[[#This Row],[Vierteljährliches Kontaktziel]],\"\")","v":""}]
[]
["Reflektion über das Ergebnis/Notizen zur Verbesserung"]
["Fast geschafft. Versuchen Sie stattdessen, um die Mittagszeit anzurufen."]

{"sheet":"Q2 Netzwerkplan","index":5,"n_rows":20,"n_cols":6,"rows_kept":20,"merged":[[0,0,0,3],[2,0,2,3],[4,0,4,3],[14,5,17,5],[18,0,18,3]]}
["Netzwerkerweiterungsplan"]
["Anleitungen"]
["Schreiben Sie, mit welchen Mitteln Sie ihr Netzwerk in diesem Quartal ausbauen möchten (d. h. mehr Telefonanrufe tätigen, mehr reisen usw.). Ändern Sie dann jedes Mal, wenn Sie einen neuen Kontakt erhalten, die Zahl der tatsächlich erzielten Kontakte, um den Überblick zu behalten und zu sehen, wie nah Sie ihrem Ziel bereits sind."]
[]
["Wie ich mein Netzwerk in diesem Quartal erweitern möchte"]
["1. Mehr Telefonanrufe tätigen"]
["2. Mehr reisen"]
[]
[]
[]
[]
[]
[]
["Vierteljährliches Kontaktziel","Stichtag","Tatsächlich im Quartal erzielte Kontakte","Ergebnisse"]
[20,{"$f":"TODAY()","v":"2021-07-12"},12,{"$f":"IF(tblGoals3[[#This Row],[Vierteljährliches Kontaktziel]]>0,tblGoals3[[#This Row],[Tatsächlich im Quartal erzielte Kontakte]]/tblGoals3[[#This Row],[Vierteljährliches Kontaktziel]],\"\")","v":{"v":0.6,"d":"60%"}},null,"0 % - 25 %\n26 % - 50 %\n51 % - 75 %\n76 % - 100 %\n\nFarbänderungen basierend auf dem erreichten Prozentsatz"]
[{"$nulls":3},{"$f":"IF(tblGoals3[[#This Row],[Vierteljährliches Kontaktziel]]>0,tblGoals3[[#This Row],[Tatsächlich im Quartal erzielte Kontakte]]/tblGoals3[[#This Row],[Vierteljährliches Kontaktziel]],\"\")","v":""}]
[{"$nulls":3},{"$f":"IF(tblGoals3[[#This Row],[Vierteljährliches Kontaktziel]]>0,tblGoals3[[#This Row],[Tatsächlich im Quartal erzielte Kontakte]]/tblGoals3[[#This Row],[Vierteljährliches Kontaktziel]],\"\")","v":""}]
[]
["Reflektion über das Ergebnis/Notizen zur Verbesserung"]
["Fast geschafft. Versuchen Sie stattdessen, um die Mittagszeit anzurufen."]

{"sheet":"Q3 Netzwerkplan","index":6,"n_rows":20,"n_cols":6,"rows_kept":20,"merged":[[0,0,0,3],[2,0,2,3],[4,0,4,3],[14,5,17,5],[18,0,18,3]]}
["Netzwerkerweiterungsplan"]
["Anleitungen"]
["Schreiben Sie, mit welchen Mitteln Sie ihr Netzwerk in diesem Quartal ausbauen möchten (d. h. mehr Telefonanrufe tätigen, mehr reisen usw.). Ändern Sie dann jedes Mal, wenn Sie einen neuen Kontakt erhalten, die Zahl der tatsächlich erzielten Kontakte, um den Überblick zu behalten und zu sehen, wie nah Sie ihrem Ziel bereits sind."]
[]
["Wie ich mein Netzwerk in diesem Quartal erweitern möchte"]
["1. Mehr Telefonanrufe tätigen"]
["2. Mehr reisen"]
[]
[]
[]
[]
[]
[]
["Vierteljährliches Kontaktziel","Stichtag","Tatsächlich im Quartal erzielte Kontakte","Ergebnisse"]
[20,{"$f":"TODAY()","v":"2021-07-12"},12,{"$f":"IF(tblGoals34[[#This Row],[Vierteljährliches Kontaktziel]]>0,tblGoals34[[#This Row],[Tatsächlich im Quartal erzielte Kontakte]]/tblGoals34[[#This Row],[Vierteljährliches Kontaktziel]],\"\")","v":{"v":0.6,"d":"60%"}},null,"0 % - 25 %\n26 % - 50 %\n51 % - 75 %\n76 % - 100 %\n\nFarbänderungen basierend auf dem erreichten Prozentsatz"]
[{"$nulls":3},{"$f":"IF(tblGoals34[[#This Row],[Vierteljährliches Kontaktziel]]>0,tblGoals34[[#This Row],[Tatsächlich im Quartal erzielte Kontakte]]/tblGoals34[[#This Row],[Vierteljährliches Kontaktziel]],\"\")","v":""}]
[{"$nulls":3},{"$f":"IF(tblGoals34[[#This Row],[Vierteljährliches Kontaktziel]]>0,tblGoals34[[#This Row],[Tatsächlich im Quartal erzielte Kontakte]]/tblGoals34[[#This Row],[Vierteljährliches Kontaktziel]],\"\")","v":""}]
[]
["Reflektion über das Ergebnis/Notizen zur Verbesserung"]
["Fast geschafft. Versuchen Sie stattdessen, um die Mittagszeit anzurufen."]

{"sheet":"Q4 Netzwerkplan","index":7,"n_rows":20,"n_cols":6,"rows_kept":20,"merged":[[0,0,0,3],[2,0,2,3],[4,0,4,3],[14,5,17,5],[18,0,18,3]]}
["Netzwerkerweiterungsplan"]
["Anleitungen"]
["Schreiben Sie, mit welchen Mitteln Sie ihr Netzwerk in diesem Quartal ausbauen möchten (d. h. mehr Telefonanrufe tätigen, mehr reisen usw.). Ändern Sie dann jedes Mal, wenn Sie einen neuen Kontakt erhalten, die Zahl der tatsächlich erzielten Kontakte, um den Überblick zu behalten und zu sehen, wie nah Sie ihrem Ziel bereits sind."]
[]
["Wie ich mein Netzwerk in diesem Quartal erweitern möchte"]
["1. Mehr Telefonanrufe tätigen"]
["2. Mehr reisen"]
[]
[]
[]
[]
[]
[]
["Vierteljährliches Kontaktziel","Stichtag","Tatsächlich im Quartal erzielte Kontakte","Ergebnisse"]
[20,{"$f":"TODAY()","v":"2021-07-12"},12,{"$f":"IF(tblGoals348[[#This Row],[Vierteljährliches Kontaktziel]]>0,tblGoals348[[#This Row],[Tatsächlich im Quartal erzielte Kontakte]]/tblGoals348[[#This Row],[Vierteljährliches Kontaktziel]],\"\")","v":{"v":0.6,"d":"60%"}},null,"0 % - 25 %\n26 % - 50 %\n51 % - 75 %\n76 % - 100 %\n\nFarbänderungen basierend auf dem erreichten Prozentsatz"]
[{"$nulls":3},{"$f":"IF(tblGoals348[[#This Row],[Vierteljährliches Kontaktziel]]>0,tblGoals348[[#This Row],[Tatsächlich im Quartal erzielte Kontakte]]/tblGoals348[[#This Row],[Vierteljährliches Kontaktziel]],\"\")","v":""}]
[{"$nulls":3},{"$f":"IF(tblGoals348[[#This Row],[Vierteljährliches Kontaktziel]]>0,tblGoals348[[#This Row],[Tatsächlich im Quartal erzielte Kontakte]]/tblGoals348[[#This Row],[Vierteljährliches Kontaktziel]],\"\")","v":""}]
[]
["Reflektion über das Ergebnis/Notizen zur Verbesserung"]
["Fast geschafft. Versuchen Sie stattdessen, um die Mittagszeit anzurufen."]